lending/lending_fUSD_20250114
["ID","MTS","AMOUNT","RATE_DAILY","PERIOD"]
[348875411,1736844125512,1191.87,0.00022986,120]
[348875412,1736844125638,1191.87,0.00022986,120]
[348875413,1736844125908,1192.08944047,0.00022986,120]
[348875414,1736844130902,151.01416,0.0002,120]
[348875415,1736844174482,2000.0,0.0002,30]
[348875416,1736844174856,2000.0,0.0002,30]
[348875417,1736844175199,2000.0,0.0002,30]
[348875418,1736844175491,2000.0,0.0002,30]
[348875419,1736844175786,2000.0,0.0002,30]
[348875420,1736844176079,2000.0,0.0002,30]
[348875421,1736844176471,2000.0,0.0002,30]
[348875422,1736844176758,2000.0,0.0002,30]
[348875423,1736844177051,2000.0,0.0002,30]
[348875424,1736844182760,1000.0,0.0002,30]
[348875457,1736844254518,921.33,8.219e-05,2]
[348875486,1736844299427,289.0,0.0002,30]
[348875489,1736844361391,3886.40564233,0.0002,30]
[348875495,1736844450955,150.0,0.00022954,120]
[348875507,1736844632017,-1000.0,8.815e-05,2]
[348875508,1736844632027,-250.0,8.936e-05,2]
[348875509,1736844632037,-589.74,8.974e-05,2]
[348875510,1736844632046,-108.48537788,8.991e-05,2]
[348875511,1736844632130,-162.65462212,8.991e-05,2]
[348875512,1736844632139,-150.0,9e-05,2]
[348875513,1736844632148,-150.0,9e-05,2]
[348875514,1736844632158,-150.0,9e-05,2]
[348875515,1736844632167,-150.0,9e-05,2]
[348875516,1736844632177,-300.0,9.106e-05,2]
[348875517,1736844632186,-300.0,9.106e-05,2]
[348875518,1736844632195,-1070.85916691,9.107e-05,2]
[348875519,1736844632206,-484.47303565,9.107e-05,2]
[348875520,1736844632235,-15391.95779744,9.107e-05,2]
[348875521,1736844632244,-150.0,9.25e-05,2]
[348875522,1736844632254,-600.0,9.4e-05,3]
[348875523,1736844632263,-437.77,9.4e-05,2]
[348875524,1736844632272,-150.0,9.452e-05,2]
[348875525,1736844632281,-150.0,9.46e-05,2]
[348875526,1736844632291,-156.129,9.49e-05,2]
[348875527,1736844632300,-150.0,9.49e-05,2]
[348875528,1736844632310,-150.0,9.5e-05,2]
[348875529,1736844632319,-150.0,9.5e-05,2]
[348875530,1736844632328,-150.0,9.5e-05,2]
[348875531,1736844632338,-150.0,9.5e-05,2]
[348875532,1736844632347,-150.0,9.5e-05,2]
[348875533,1736844632357,-1200.0,9.5e-05,3]
[348875534,1736844632366,-1900.0,9.6e-05,3]
[348875535,1736844632376,-976.28,9.7e-05,2]
[348875536,1736844632385,-2500.0,9.7e-05,3]
[348875537,1736844632394,-150.0,9.75e-05,2]
[348875538,1736844632403,-245.1013245,9.79e-05,2]
[348875539,1736844632413,-3100.0,9.8e-05,3]
[348875540,1736844632423,-5000.0,9.887e-05,2]
[348875541,1736844632432,-600.0,9.9e-05,3]
[348875542,1736844632441,-1000.0,9.916e-05,2]
[348875543,1736844632451,-680.52786857,9.968e-05,2]
[348875544,1736844632460,-1171.0,9.973e-05,2]
[348875545,1736844632469,-150.88434564,9.973e-05,2]
[348875546,1736844632479,-159.86784655,9.973e-05,2]
[348875547,1736844632489,-160.09055686,9.973e-05,2]
[348875548,1736844632498,-500.0,9.973e-05,2]
[348875549,1736844632508,-150.0,9.973e-05,2]
[348875550,1736844632519,-1289.93,9.986e-05,2]
[348875551,1736844632528,-1132.56,9.986e-05,2]
[348875552,1736844632538,-604.35,9.986e-05,2]
[348875553,1736844632548,-500.0,9.986e-05,2]
[348875554,1736844632558,-2339.04,9.986e-05,2]
[348875555,1736844632567,-3658.93,9.986e-05,2]
[348875557,1736844632576,-1206.12,9.986e-05,2]
[348875559,1736844632586,-2045.61,9.986e-05,2]
[348875561,1736844632595,-500.0,9.986e-05,2]
[348875563,1736844632605,-1376.21,9.986e-05,2]
[348875565,1736844632615,-1002.69,9.986e-05,2]
[348875567,1736844632624,-3529.52,9.986e-05,2]
[348875569,1736844632634,-1733.83,9.986e-05,2]
[348875571,1736844632643,-500.0,9.986e-05,2]
[348875572,1736844632652,-500.0,9.986e-05,2]
[348875574,1736844632661,-1095.85,9.986e-05,2]
[348875575,1736844632673,-500.0,9.986e-05,2]
[348875577,1736844632683,-2181.76,9.986e-05,2]
[348875579,1736844632692,-3191.5,9.986e-05,2]
[348875581,1736844632702,-500.0,9.986e-05,2]
[348875583,1736844632711,-501.00953997,9.987e-05,2]
[348875585,1736844632720,-506.52981725,9.987e-05,2]
[348875587,1736844632729,-500.0,9.987e-05,2]
[348875589,1736844632738,-500.0,9.987e-05,2]
[348875591,1736844632747,-500.0,9.987e-05,2]
[348875593,1736844632756,-500.0,9.987e-05,2]
[348875594,1736844632765,-501.56887059,9.987e-05,2]
[348875596,1736844632774,-500.0,9.987e-05,2]
[348875598,1736844632785,-381.52794962,9.987e-05,2]
[348875600,1736844632796,-500.0,9.987e-05,2]
[348875602,1736844632805,-500.0,9.987e-05,2]
[348875630,1736844633063,-500.0,9.987e-05,2]
[348875632,1736844633072,-500.0,9.987e-05,2]
[348875634,1736844633082,-500.0,9.987e-05,2]
[348875636,1736844633091,-500.0,9.987e-05,2]
[348875638,1736844633100,-500.0,9.987e-05,2]
[348875640,1736844633110,-500.0,9.987e-05,2]
[348875642,1736844633119,-500.0,9.987e-05,2]
[348875644,1736844633129,-513.18061996,9.987e-05,2]
[348875645,1736844633138,-500.0,9.987e-05,2]
[348875647,1736844633147,-500.0,9.987e-05,2]
[348875649,1736844633157,-500.0,9.987e-05,2]
[348875651,1736844633166,-500.0,9.987e-05,2]
[348875653,1736844633175,-500.0,9.987e-05,2]
[348875655,1736844633185,-500.0,9.987e-05,2]
[348875657,1736844633194,-509.24629197,9.987e-05,2]
[348875659,1736844633203,-500.0,9.987e-05,2]
[348875661,1736844633212,-500.0,9.987e-05,2]
[348875663,1736844633221,-500.0,9.987e-05,2]
[348875665,1736844633231,-500.0,9.987e-05,2]
[348875667,1736844633240,-500.0,9.987e-05,2]
[348875669,1736844633250,-500.0,9.987e-05,2]
[348875671,1736844633260,-500.0,9.987e-05,2]
[348875673,1736844633269,-500.0,9.987e-05,2]
[348875675,1736844633279,-500.0,9.987e-05,2]
[348875677,1736844633288,-500.0,9.987e-05,2]
[348875679,1736844633298,-500.0,9.987e-05,2]
[348875681,1736844633307,-500.0,9.987e-05,2]
[348875683,1736844633315,-500.0,9.987e-05,2]
[348875685,1736844633325,-505.89982287,9.987e-05,2]
[348875687,1736844633334,-500.0,9.987e-05,2]
[348875689,1736844633344,-500.0,9.987e-05,2]
[348875691,1736844633354,-500.0,9.987e-05,2]
[348875693,1736844633363,-500.0,9.987e-05,2]
[348875695,1736844633373,-500.0,9.987e-05,2]
[348875697,1736844633382,-500.0,9.987e-05,2]
[348875699,1736844633392,-1135.01,9.987e-05,2]
[348875701,1736844633401,-500.0,9.987e-05,2]
[348875703,1736844633410,-500.0,9.987e-05,2]
[348875705,1736844633420,-500.0,9.987e-05,2]
[348875707,1736844633429,-500.0,9.987e-05,2]
[348875709,1736844633438,-500.0,9.987e-05,2]
[348875711,1736844633448,-500.0,9.987e-05,2]
[348875712,1736844633457,-500.0,9.987e-05,2]
[348875714,1736844633467,-197.011963,9.987e-05,2]
[348875716,1736844633475,-500.0,9.987e-05,2]
[348875718,1736844633485,-197.011963,9.987e-05,2]
[348875720,1736844633494,-500.0,9.987e-05,2]
[348875722,1736844633504,-500.0,9.987e-05,2]
[348875724,1736844633513,-509.00609673,9.987e-05,2]
[348875726,1736844633523,-500.0,9.987e-05,2]
[348875727,1736844633532,-500.0,9.987e-05,2]
[348875728,1736844633542,-500.0,9.987e-05,2]
[348875729,1736844633552,-500.0,9.987e-05,2]
[348875730,1736844633561,-196.61835499,9.987e-05,2]
[348875731,1736844633571,-649.94,9.987e-05,2]
[348875732,1736844633581,-500.0,9.987e-05,2]
[348875733,1736844633591,-500.0,9.987e-05,2]
[348875734,1736844633601,-500.0,9.987e-05,2]
[348875735,1736844633610,-500.0,9.987e-05,2]
[348875736,1736844633620,-500.0,9.987e-05,2]
[348875737,1736844633630,-500.0,9.987e-05,2]
[348875738,1736844633639,-599.66,9.987e-05,2]
[348875739,1736844633649,-500.0,9.987e-05,2]
[348875740,1736844633658,-500.0,9.987e-05,2]
[348875741,1736844633668,-887.76,9.987e-05,2]
[348875742,1736844633678,-500.0,9.987e-05,2]
[348875743,1736844633689,-836.63,9.987e-05,2]
[348875744,1736844633699,-500.0,9.987e-05,2]
[348875745,1736844633709,-640.09,9.987e-05,2]
[348875746,1736844633718,-658.34,9.987e-05,2]
[348875748,1736844633728,-500.0,9.987e-05,2]
[348875750,1736844633737,-500.0,9.987e-05,2]
[348875752,1736844633747,-500.0,9.987e-05,2]
[348875754,1736844633756,-899.12,9.987e-05,2]
[348875756,1736844633765,-500.0,9.987e-05,2]
[348875758,1736844633775,-500.0,9.987e-05,2]
[348875760,1736844633785,-500.0,9.987e-05,2]
[348875762,1736844633797,-500.0,9.987e-05,2]
[348875764,1736844633807,-500.0,9.987e-05,2]
[348875766,1736844633816,-500.0,9.987e-05,2]
[348875767,1736844633827,-500.0,9.987e-05,2]
[348875768,1736844633837,-746.22,9.987e-05,2]
[348875769,1736844633847,-648.78,9.987e-05,2]
[348875770,1736844633857,-500.0,9.987e-05,2]
[348875771,1736844633868,-500.0,9.987e-05,2]
[348875772,1736844633879,-500.0,9.987e-05,2]
[348875773,1736844633889,-500.0,9.987e-05,2]
[348875774,1736844633898,-500.0,9.987e-05,2]
[348875775,1736844633909,-502.63441661,9.987e-05,2]
[348875776,1736844633918,-500.0,9.987e-05,2]
[348875777,1736844633928,-534.53,9.987e-05,2]
[348875778,1736844633939,-869.4,9.987e-05,2]
[348875779,1736844633949,-512.84630504,9.987e-05,2]
[348875780,1736844633959,-500.0,9.987e-05,2]
[348875781,1736844633969,-500.0,9.987e-05,2]
[348875782,1736844633979,-500.0,9.987e-05,2]
[348875783,1736844633988,-819.93,9.987e-05,2]
[348875784,1736844633998,-500.0,9.987e-05,2]
[348875785,1736844634007,-588.69,9.987e-05,2]
[348875786,1736844634016,-743.15,9.987e-05,2]
[348875787,1736844634026,-500.0,9.987e-05,2]
[348875788,1736844634035,-805.45,9.987e-05,2]
[348875789,1736844634045,-500.0,9.987e-05,2]
[348875790,1736844634054,-642.99,9.987e-05,2]
[348875791,1736844634064,-500.0,9.987e-05,2]
[348875792,1736844634074,-500.0,9.987e-05,2]
[348875793,1736844634084,-500.0,9.987e-05,2]
[348875794,1736844634093,-500.0,9.987e-05,2]
[348875795,1736844634102,-500.0,9.987e-05,2]
[348875796,1736844634111,-500.0,9.987e-05,2]
[348875797,1736844634120,-500.0,9.987e-05,2]
[348875798,1736844634130,-500.0,9.987e-05,2]
[348875799,1736844634139,-500.0,9.987e-05,2]
[348875800,1736844634149,-500.0,9.987e-05,2]
[348875801,1736844634158,-500.0,9.987e-05,2]
[348875802,1736844634167,-497.54144149,9.987e-05,2]
[348875803,1736844634177,-500.0,9.987e-05,2]
[348875804,1736844634186,-210.55970478,9.987e-05,2]
[348875805,1736844634195,-500.0,9.987e-05,2]
[348875806,1736844634204,-500.0,9.987e-05,2]
[348875807,1736844634213,-500.0,9.987e-05,2]
[348875808,1736844634223,-427.94372254,9.987e-05,2]
[348875809,1736844634232,-500.0,9.987e-05,2]
[348875810,1736844634242,-500.0,9.987e-05,2]
[348875811,1736844634251,-500.0,9.987e-05,2]
[348875812,1736844634260,-890.46,9.987e-05,2]
[348875813,1736844634270,-500.0,9.987e-05,2]
[348875814,1736844634280,-500.0,9.987e-05,2]
[348875815,1736844634289,-500.0,9.987e-05,2]
[348875816,1736844634299,-500.0,9.987e-05,2]
[348875817,1736844634308,-500.0,9.987e-05,2]
[348875818,1736844634318,-500.0,9.987e-05,2]
[348875819,1736844634327,-500.0,9.987e-05,2]
[348875820,1736844634338,-500.0,9.987e-05,2]
[348875821,1736844634348,-502.56980573,9.987e-05,2]
[348875822,1736844634358,-500.0,9.987e-05,2]
[348875823,1736844634368,-500.0,9.987e-05,2]
[348875824,1736844634378,-548.64,9.987e-05,2]
[348875825,1736844634388,-500.0,9.987e-05,2]
[348875826,1736844634398,-520.23,9.987e-05,2]
[348875827,1736844634407,-500.0,9.987e-05,2]
[348875828,1736844634417,-500.0,9.987e-05,2]
[348875829,1736844634426,-500.0,9.987e-05,2]
[348875830,1736844634436,-500.0,9.987e-05,2]
[348875831,1736844634446,-500.0,9.987e-05,2]
[348875832,1736844634455,-500.0,9.987e-05,2]
[348875833,1736844634464,-500.0,9.987e-05,2]
[348875834,1736844634474,-500.0,9.987e-05,2]
[348875835,1736844634484,-1012.47,9.987e-05,2]
[348875836,1736844634494,-1032.42,9.987e-05,2]
[348875837,1736844634504,-531.17077151,9.987e-05,2]
[348875838,1736844634514,-500.0,9.987e-05,2]
[348875839,1736844634523,-500.0,9.987e-05,2]
[348875840,1736844634534,-500.0,9.987e-05,2]
[348875841,1736844634543,-500.0,9.987e-05,2]
[348875842,1736844634553,-500.0,9.987e-05,2]
[348875843,1736844634562,-620.65122261,9.987e-05,2]
[348875844,1736844634572,-582.23,9.987e-05,2]
[348875845,1736844634581,-500.0,9.987e-05,2]
[348875846,1736844634591,-500.0,9.987e-05,2]
[348875847,1736844634601,-500.0,9.987e-05,2]
[348875848,1736844634611,-500.0,9.987e-05,2]
[348875849,1736844634620,-500.0,9.987e-05,2]
[348875850,1736844634629,-500.0,9.987e-05,2]
[348875851,1736844634639,-500.0,9.987e-05,2]
[348875852,1736844634648,-500.0,9.987e-05,2]
[348875853,1736844634658,-500.0,9.987e-05,2]
[348875854,1736844634668,-500.0,9.987e-05,2]
[348875855,1736844634678,-500.0,9.987e-05,2]
[348875856,1736844634688,-500.0,9.987e-05,2]
[348875857,1736844634697,-1057.94,9.987e-05,2]
[348875858,1736844634707,-500.0,9.987e-05,2]
[348875859,1736844634716,-500.0,9.987e-05,2]
[348875860,1736844634726,-529.67857793,9.987e-05,2]
[348875861,1736844634736,-500.0,9.987e-05,2]
[348875862,1736844634747,-503.15809068,9.987e-05,2]
[348875863,1736844634756,-500.0,9.987e-05,2]
[348875864,1736844634767,-500.0,9.987e-05,2]
[348875865,1736844634776,-563.73,9.987e-05,2]
[348875866,1736844634788,-500.0,9.987e-05,2]
[348875867,1736844634799,-500.0,9.987e-05,2]
[348875868,1736844634808,-500.0,9.987e-05,2]
[348875869,1736844634818,-500.0,9.987e-05,2]
[348875870,1736844634828,-500.0,9.987e-05,2]
[348875871,1736844634838,-974.29,9.987e-05,2]
[348875872,1736844634847,-500.0,9.987e-05,2]
[348875873,1736844634857,-500.0,9.987e-05,2]
[348875874,1736844634867,-500.0,9.987e-05,2]
[348875875,1736844634877,-500.0,9.987e-05,2]
[348875876,1736844634886,-500.0,9.987e-05,2]
[348875877,1736844634896,-502.25681925,9.987e-05,2]
[348875878,1736844634905,-500.0,9.987e-05,2]
[348875879,1736844634915,-502.07938373,9.987e-05,2]
[348875880,1736844634927,-500.0,9.987e-05,2]
[348875881,1736844634936,-169.50158,9.987e-05,2]
[348875882,1736844634946,-500.0,9.987e-05,2]
[348875883,1736844634956,-500.0,9.987e-05,2]
[348875884,1736844634966,-500.0,9.987e-05,2]
[348875885,1736844634976,-500.0,9.987e-05,2]
[348875886,1736844634986,-500.0,9.987e-05,2]
[348875887,1736844634996,-500.0,9.987e-05,2]
[348875888,1736844635005,-500.0,9.987e-05,2]
[348875889,1736844635015,-854.13,9.987e-05,2]
[348875890,1736844635024,-501.55540315,9.987e-05,2]
[348875891,1736844635033,-500.0,9.987e-05,2]
[348875892,1736844635043,-500.0,9.987e-05,2]
[348875893,1736844635053,-500.0,9.987e-05,2]
[348875894,1736844635062,-500.0,9.987e-05,2]
[348875895,1736844635072,-500.0,9.987e-05,2]
[348875896,1736844635082,-500.0,9.987e-05,2]
[348875897,1736844635092,-500.0,9.987e-05,2]
[348875898,1736844635103,-500.0,9.987e-05,2]
[348875899,1736844635112,-500.0,9.987e-05,2]
[348875900,1736844635123,-500.0,9.987e-05,2]
[348875901,1736844635133,-500.0,9.987e-05,2]
[348875902,1736844635142,-500.0,9.987e-05,2]
[348875903,1736844635153,-502.70347835,9.987e-05,2]
[348875904,1736844635163,-504.83379701,9.987e-05,2]
[348875905,1736844635172,-500.0,9.987e-05,2]
[348875906,1736844635183,-500.0,9.987e-05,2]
[348875907,1736844635193,-500.0,9.987e-05,2]
[348875908,1736844635203,-514.23013043,9.987e-05,2]
[348875909,1736844635213,-500.0,9.987e-05,2]
[348875910,1736844635222,-500.0,9.987e-05,2]
[348875911,1736844635232,-946.52,9.987e-05,2]
[348875912,1736844635241,-500.0,9.987e-05,2]
[348875913,1736844635251,-428.22786466,9.987e-05,2]
[348875914,1736844635260,-501.44701415,9.987e-05,2]
[348875915,1736844635270,-500.0,9.987e-05,2]
[348875916,1736844635280,-500.0,9.987e-05,2]
[348875917,1736844635289,-573.67951457,9.987e-05,2]
[348875918,1736844635299,-500.0,9.987e-05,2]
[348875919,1736844635309,-500.0,9.987e-05,2]
[348875920,1736844635318,-500.0,9.987e-05,2]
[348875921,1736844635327,-500.0,9.987e-05,2]
[348875922,1736844635337,-500.0,9.987e-05,2]
[348875923,1736844635347,-667.14,9.987e-05,2]
[348875924,1736844635357,-500.0,9.987e-05,2]
[348875925,1736844635366,-292.64825371,9.987e-05,2]
[348875926,1736844635375,-500.0,9.987e-05,2]
[348875927,1736844635385,-500.0,9.987e-05,2]
[348875928,1736844635395,-786.62,9.987e-05,2]
[348875929,1736844635405,-500.0,9.987e-05,2]
[348875930,1736844635414,-500.0,9.987e-05,2]
[348875931,1736844635424,-500.0,9.987e-05,2]
[348875932,1736844635433,-255.83370233,9.987e-05,2]
[348875933,1736844635443,-500.0,9.987e-05,2]
[348875934,1736844635453,-500.0,9.987e-05,2]
[348875935,1736844635462,-1055.05,9.987e-05,2]
[348875936,1736844635472,-500.0,9.987e-05,2]
[348875937,1736844635482,-500.0,9.987e-05,2]
[348875938,1736844635492,-691.04,9.987e-05,2]
[348875939,1736844635501,-500.22,9.987e-05,2]
[348875940,1736844635511,-570.44958384,9.987e-05,2]
[348875941,1736844635520,-500.0,9.987e-05,2]
[348875942,1736844635530,-500.0,9.987e-05,2]
[348875943,1736844635539,-986.29,9.987e-05,2]
[348875944,1736844635549,-405.62680949,9.987e-05,2]
[348875945,1736844635558,-500.0,9.987e-05,2]
[348875946,1736844635568,-500.0,9.987e-05,2]
[348875947,1736844635579,-929.55,9.987e-05,2]
[348875948,1736844635588,-500.0,9.987e-05,2]
[348875949,1736844635598,-500.0,9.987e-05,2]
[348875950,1736844635607,-500.0,9.987e-05,2]
[348875951,1736844635617,-500.0,9.987e-05,2]
[348875952,1736844635626,-500.0,9.987e-05,2]
[348875953,1736844635635,-500.0,9.987e-05,2]
[348875954,1736844635645,-708.79,9.987e-05,2]
[348875955,1736844635654,-502.56364366,9.987e-05,2]
[348875956,1736844635664,-504.97804674,9.987e-05,2]
[348875957,1736844635673,-500.0,9.987e-05,2]
[348875958,1736844635683,-500.0,9.987e-05,2]
[348875959,1736844635692,-503.85132813,9.987e-05,2]
[348875960,1736844635701,-693.2,9.987e-05,2]
[348875961,1736844635711,-500.0,9.987e-05,2]
[348875962,1736844635720,-151.03874766,9.987e-05,2]
[348875963,1736844635730,-500.0,9.987e-05,2]
[348875964,1736844635742,-503.37592142,9.987e-05,2]
[348875965,1736844635752,-500.0,9.987e-05,2]
[348875966,1736844635762,-500.0,9.987e-05,2]
[348875967,1736844635772,-500.0,9.987e-05,2]
[348875968,1736844635782,-500.0,9.987e-05,2]
[348875969,1736844635795,-504.03504514,9.987e-05,2]
[348875970,1736844635806,-822.61,9.987e-05,2]
[348875971,1736844635815,-500.0,9.987e-05,2]
[348875972,1736844635825,-500.0,9.987e-05,2]
[348875973,1736844635835,-500.0,9.987e-05,2]
[348875974,1736844635845,-500.0,9.987e-05,2]
[348875975,1736844635855,-500.0,9.987e-05,2]
[348875976,1736844635867,-500.0,9.987e-05,2]
[348875977,1736844635877,-500.0,9.987e-05,2]
[348875978,1736844635886,-500.0,9.987e-05,2]
[348875979,1736844635895,-500.0,9.987e-05,2]
[348875980,1736844635905,-500.0,9.987e-05,2]
[348875981,1736844635915,-779.34,9.987e-05,2]
[348875982,1736844635927,-500.0,9.987e-05,2]
[348875983,1736844635937,-504.16142673,9.987e-05,2]
[348875984,1736844635947,-500.0,9.987e-05,2]
[348875985,1736844635957,-500.0,9.987e-05,2]
[348875986,1736844635966,-500.0,9.987e-05,2]
[348875987,1736844635975,-500.0,9.987e-05,2]
[348875988,1736844635986,-703.35,9.987e-05,2]
[348875989,1736844635995,-500.0,9.987e-05,2]
[348875990,1736844636004,-501.70665722,9.987e-05,2]
[348875991,1736844636014,-500.0,9.987e-05,2]
[348875992,1736844636024,-500.0,9.987e-05,2]
[348875993,1736844636034,-500.0,9.987e-05,2]
[348875994,1736844636044,-2716.82,9.987e-05,2]
[348875995,1736844636054,-1202.99,9.987e-05,2]
[348875996,1736844636063,-500.0,9.987e-05,2]
[348875997,1736844636073,-540.62776063,9.987e-05,2]
[348875998,1736844636083,-500.0,9.987e-05,2]
[348875999,1736844636093,-244.80324847,9.987e-05,2]
[348876000,1736844636103,-500.0,9.987e-05,2]
[348876001,1736844636112,-500.0,9.987e-05,2]
[348876002,1736844636121,-501.88782072,9.987e-05,2]
[348876003,1736844636131,-497.17960333,9.987e-05,2]
[348876004,1736844636140,-519.71,9.987e-05,2]
[348876005,1736844636149,-500.0,9.987e-05,2]
[348876006,1736844636159,-1503.21,9.987e-05,2]
[348876007,1736844636168,-500.0,9.987e-05,2]
[348876008,1736844636178,-1092.38,9.987e-05,2]
[348876009,1736844636187,-401.70777504,9.987e-05,2]
[348876010,1736844636197,-500.0,9.987e-05,2]
[348876011,1736844636207,-500.0,9.987e-05,2]
[348876012,1736844636216,-2880.87,9.987e-05,2]
[348876013,1736844636228,-622.00858151,9.987e-05,2]
[348876014,1736844636237,-500.0,9.987e-05,2]
[348876015,1736844636247,-502.97570178,9.987e-05,2]
[348876016,1736844636257,-998.61,9.987e-05,2]
[348876017,1736844636267,-7868.07,9.987e-05,2]
[348876018,1736844636277,-501.1552615,9.987e-05,2]
[348876019,1736844636286,-500.0,9.987e-05,2]
[348876020,1736844636297,-500.0,9.987e-05,2]
[348876021,1736844636306,-500.0,9.987e-05,2]
[348876022,1736844636315,-500.0,9.987e-05,2]
[348876023,1736844636325,-500.0,9.987e-05,2]
[348876024,1736844636335,-500.0,9.987e-05,2]
[348876025,1736844636345,-500.0,9.987e-05,2]
[348876026,1736844636354,-500.0,9.987e-05,2]
[348876027,1736844636364,-500.0,9.987e-05,2]
[348876028,1736844636374,-500.0,9.987e-05,2]
[348876029,1736844636383,-500.0,9.987e-05,2]
[348876030,1736844636392,-500.0,9.987e-05,2]
[348876031,1736844636402,-500.0,9.987e-05,2]
[348876032,1736844636411,-500.0,9.987e-05,2]
[348876033,1736844636421,-500.0,9.987e-05,2]
[348876034,1736844636430,-500.0,9.987e-05,2]
[348876035,1736844636440,-1013.09,9.987e-05,2]
[348876036,1736844636450,-500.0,9.987e-05,2]
[348876037,1736844636459,-500.0,9.987e-05,2]
[348876038,1736844636469,-500.0,9.987e-05,2]
[348876039,1736844636479,-500.0,9.987e-05,2]
[348876040,1736844636488,-500.0,9.987e-05,2]
[348876041,1736844636498,-500.0,9.987e-05,2]
[348876042,1736844636508,-500.0,9.987e-05,2]
[348876043,1736844636517,-500.0,9.987e-05,2]
[348876044,1736844636527,-535.42938821,9.987e-05,2]
[348876045,1736844636537,-696.31,9.987e-05,2]
[348876046,1736844636547,-500.0,9.987e-05,2]
[348876047,1736844636556,-500.0,9.987e-05,2]
[348876048,1736844636566,-500.0,9.987e-05,2]
[348876049,1736844636575,-500.0,9.987e-05,2]
[348876050,1736844636585,-878.08,9.987e-05,2]
[348876051,1736844636594,-503.09391746,9.987e-05,2]
[348876052,1736844636603,-1445.26,9.987e-05,2]
[348876053,1736844636613,-500.0,9.987e-05,2]
[348876054,1736844636623,-500.0,9.987e-05,2]
[348876055,1736844636632,-500.0,9.987e-05,2]
[348876056,1736844636642,-237.9369295,9.987e-05,2]
[348876057,1736844636652,-500.0,9.987e-05,2]
[348876058,1736844636661,-500.0,9.987e-05,2]
[348876059,1736844636671,-500.0,9.987e-05,2]
[348876060,1736844636681,-500.0,9.987e-05,2]
[348876061,1736844636691,-171.26,9.987e-05,2]
[348876062,1736844636701,-500.0,9.987e-05,2]
[348876063,1736844636710,-500.0,9.987e-05,2]
[348876064,1736844636720,-2756.19,9.987e-05,2]
[348876065,1736844636729,-502.18,9.987e-05,2]
[348876066,1736844636739,-500.0,9.987e-05,2]
[348876067,1736844636749,-500.0,9.987e-05,2]
[348876068,1736844636758,-500.0,9.987e-05,2]
[348876069,1736844636768,-500.0,9.987e-05,2]
[348876070,1736844636778,-500.0,9.987e-05,2]
[348876071,1736844636788,-500.0,9.987e-05,2]
[348876072,1736844636800,-581.77827455,9.987e-05,2]
[348876073,1736844636809,-948.24,9.987e-05,2]
[348876074,1736844636819,-500.0,9.987e-05,2]
[348876075,1736844636828,-234.26060798,9.987e-05,2]
[348876076,1736844636839,-500.0,9.987e-05,2]
[348876077,1736844636849,-500.0,9.987e-05,2]
[348876078,1736844636858,-1846.98,9.987e-05,2]
[348876079,1736844636869,-500.0,9.987e-05,2]
[348876080,1736844636879,-4290.42,9.987e-05,2]
[348876081,1736844636888,-665.86,9.987e-05,2]
[348876082,1736844636898,-479.72953856,9.987e-05,2]
[348876083,1736844636907,-500.0,9.987e-05,2]
[348876084,1736844636917,-500.0,9.987e-05,2]
[348876085,1736844636926,-303.21645061,9.987e-05,2]
[348876086,1736844637131,-500.0,9.987e-05,2]
[348876087,1736844637141,-512.1604123,9.987e-05,2]
[348876088,1736844637150,-500.0,9.987e-05,2]
[348876089,1736844637160,-500.0,9.987e-05,2]
[348876090,1736844637169,-500.0,9.987e-05,2]
[348876091,1736844637178,-500.0,9.987e-05,2]
[348876092,1736844637188,-1484.55,9.987e-05,2]
[348876093,1736844637198,-500.0,9.987e-05,2]
[348876094,1736844637207,-500.0,9.987e-05,2]